{"text_format":"3","workbook":"xlsx","n_sheets":2,"sheets":["Aloitus","Myyntilasku"],"not_rendered":{"images":1,"defined_names":1},"read":"whole","date_system":"1900"}

{"sheet":"Aloitus","index":0,"n_rows":8,"n_cols":2,"rows_kept":8}
[null,"TIETOJA TÄSTÄ MALLISTA"]
[null,"Tämän mallin avulla voit luoda myyntilasku."]
[null,"Kirjoita laskun numero, päivämäärä, yrityksen nimi, osoite, iskulause ja laskutusosoite."]
[null,"Anna tiedot taulukoihin."]
[null,"Summa lasketaan automaattisesti."]
[null,"Huomautus: "]
[null,"MYYNTILASKU-laskentataulukon sarakkeessa A on lisäohjeita. Tämä teksti on piilotettu tarkoituksella. Jos haluat poistaa tekstin, valitse sarake A ja valitse sitten POISTA. Jos haluat tuoda tekstin näkyviin, valitse sarake A ja muuta sitten fonttiväriä."]
[null,"Jos haluat lisätietoja jostakin taulukosta, paina kyseisessä taulukossa VAIHTO ja sitten F10, valitse TAULUKKO-vaihtoehto ja valitse sitten VAIHTOEHTOINEN TEKSTI."]

{"sheet":"Myyntilasku","index":1,"n_rows":43,"n_cols":5,"rows_kept":43,"merged":[[0,1,0,2],[0,3,0,4],[1,1,1,4],[2,1,2,3],[3,1,3,3],[4,1,4,2],[5,1,5,2],[6,1,6,2],[7,1,7,2],[41,1,41,2],[41,3,41,4],[42,1,42,4]]}
["Luo myyntilasku tässä laskentataulukossa. Anna yrityksen logo oikealla olevaan soluun ja tämän laskentataulukon otsikko soluun D1. Tämän sarakkeen soluissa on hyödyllisiä ohjeita tämän laskentataulukon käyttöön. Seuraava ohje on solussa A3.","Logon paikkamerkki on tässä solussa.",null,"LASKU"]
[]
["Kirjoita yrityksen nimi oikeanpuoleiseen soluun.","Yrityksesi nimi"]
["Kirjoita yrityksen iskulause oikeanpuoleiseen soluun.","Yrityksesi iskulause"]
["Kirjoita yrityksen katuosoite oikeanpuoleiseen soluun ja laskun numero soluun E5.","Katuosoite",null,"LASKUN NRO","Nro"]
["Kirjoita postinumero ja postitoimipaikka oikealla olevaan soluun ja päivämäärä soluun E6.","Postinumero ja postitoimipaikka",null,"PÄIVÄMÄÄRÄ ",{"$f":"TODAY()","v":"2019-04-19"}]
["Kirjoita puhelin- ja faksinumerot oikealla olevaan soluun ja tunnus soluun E7.","Puhelin Faksi",null,"ASIAKASTUNNUS ","Tunnus"]
["Kirjoita sähköpostiosoite oikealla olevaan soluun.","Sähköposti"]
["Vastaanottaja-selite on solussa oikealla. Kirjoita laskutusosoitteen tiedot, kuten nimi, yrityksen nimi, osoite ja puhelinnumero soluihin C9ￚC13. Seuraava ohje on solussa A14.","VASTAANOTTAJA","Nimi"]
[null,null,"Yrityksen nimi"]
[null,null,"Katuosoite"]
[null,null,"Postinumero ja -toimipaikka"]
[null,null,"Puhelin"]
["Kirjoita tietoja Myyntitiedot-taulukkoon alkaen oikealla olevasta solusta. Seuraava ohje on solussa A17.","MYYJÄ","TYÖ","MAKSUEHDOT","ERÄPÄIVÄ"]
[{"$nulls":3},"Maksettava vastaanotettaessa"]
[]
["Kirjoita tietoja Laskutaulukkoon alkaen oikealla olevasta solusta. Välisumma ja summa lasketaan automaattisesti. Seuraava ohje on solussa A42.","MÄÄRÄ","KUVAUS","YKSIKKÖHINTA","RIVI YHTEENSÄ"]
[{"$nulls":4},{"$f":"IF(SUM(B18)>0,SUM(B18*Myyntilasku!$D18),\"\")","v":""}]
[{"$nulls":4},{"$f":"IF(SUM(B19)>0,SUM(B19*Myyntilasku!$D19),\"\")","v":""}]
[{"$nulls":4},{"$f":"IF(SUM(B20)>0,SUM(B20*Myyntilasku!$D20),\"\")","v":""}]
[{"$nulls":4},{"$f":"IF(SUM(B21)>0,SUM(B21*Myyntilasku!$D21),\"\")","v":""}]
[{"$nulls":4},{"$f":"IF(SUM(B22)>0,SUM(B22*Myyntilasku!$D22),\"\")","v":""}]
[{"$nulls":4},{"$f":"IF(SUM(B23)>0,SUM(B23*Myyntilasku!$D23),\"\")","v":""}]
[{"$nulls":4},{"$f":"IF(SUM(B24)>0,SUM(B24*Myyntilasku!$D24),\"\")","v":""}]
[{"$nulls":4},{"$f":"IF(SUM(B25)>0,SUM(B25*Myyntilasku!$D25),\"\")","v":""}]
[{"$nulls":4},{"$f":"IF(SUM(B26)>0,SUM(B26*Myyntilasku!$D26),\"\")","v":""}]
[{"$nulls":4},{"$f":"IF(SUM(B27)>0,SUM(B27*Myyntilasku!$D27),\"\")","v":""}]
[{"$nulls":4},{"$f":"IF(SUM(B28)>0,SUM(B28*Myyntilasku!$D28),\"\")","v":""}]
[{"$nulls":4},{"$f":"IF(SUM(B29)>0,SUM(B29*Myyntilasku!$D29),\"\")","v":""}]
[{"$nulls":4},{"$f":"IF(SUM(B30)>0,SUM(B30*Myyntilasku!$D30),\"\")","v":""}]
[{"$nulls":4},{"$f":"IF(SUM(B31)>0,SUM(B31*Myyntilasku!$D31),\"\")","v":""}]
[{"$nulls":4},{"$f":"IF(SUM(B32)>0,SUM(B32*Myyntilasku!$D32),\"\")","v":""}]
[{"$nulls":4},{"$f":"IF(SUM(B33)>0,SUM(B33*Myyntilasku!$D33),\"\")","v":""}]
[{"$nulls":4},{"$f":"IF(SUM(B34)>0,SUM(B34*Myyntilasku!$D34),\"\")","v":""}]
[{"$nulls":4},{"$f":"IF(SUM(B35)>0,SUM(B35*Myyntilasku!$D35),\"\")","v":""}]
[{"$nulls":4},{"$f":"IF(SUM(B36)>0,SUM(B36*Myyntilasku!$D36),\"\")","v":""}]
[{"$nulls":4},{"$f":"IF(SUM(B37)>0,SUM(B37*Myyntilasku!$D37),\"\")","v":""}]
[{"$nulls":3},"VÄLISUMMA",{"$f":"IF(SUM(E18:E37)>0,SUM(E18:E37),\"\")","v":""}]
[{"$nulls":3},"ALV"]
[{"$nulls":3},"SUMMA",{"$f":"IF(SUM(E38)>0,SUM((E38*E39)+E38),\"\")","v":""}]
[]
["Yrityksen nimi päivitetään automaattisesti soluun D42.","Kaikkien maksujen saaja",null,{"$f":"B3","v":"Yrityksesi nimi"}]
["Kiitosviesti on oikealla olevassa solussa.","KIITOS PALVELUIDEMME KÄYTTÄMISESTÄ."]